[Event "RUS Cup Final Women 2017"]
[Site "Khanty-Mansiysk"]
[Date "2017.12.05"]
[Round "1"]
[White "Kovanova, Baira"]
[Black "Schepetkova, Margarita"]
[Result "1-0"]
[ECO "A07"]
[WhiteElo "2367"]
[BlackElo "2247"]
[Annotator "ChessBase"]
[PlyCount "93"]
[EventDate "2017.??.??"]
[EventCountry "RUS"]
[SourceTitle "playchess.com"]
[Source "ChessBase"]
[SourceQuality "1"]
[TimeControl "5400+30"]

1. Nf3 d5 2. g3 Nf6 3. Bg2 c6 4. O-O Bg4 5. Ne5 Bf5 6. c4 e6 7. cxd5 exd5 8. d4 Nbd7 9. Nc3 Bd6 10. Bf4 Qe7 11. Nxd7 Bxd7 12. Bg5 Bb4 13. e4 Bxc3 14. e5 Ba5 15. exf6 gxf6 16. Bh4 Rg8 17. Qa4 Qb4 18. Qc2 Qxd4 19. Rfd1 Qg4 20. Bxf6 Qg6 21. Qe2+ Be6 22. Bd4 Bb6 23. Bxb6 axb6 24. Qe3 b5 25. Qb6 Bc8 26. Be4 Qh5 27. Bg2 Kf8 28. Rd4 Qg5 29. Re1 Kg7 30. Rf4 Ra4 31. b4 Qd8 32. Qc5 Re8 33. Qd4+ Kg8 34. Ra1 Qe7 35. Bf3 Qe5 36. Qd1 Ra3 37. Bg4 Bxg4 38. Qxg4+ Qg7 39. Qd1 Kh8 40. Rb1 Rxa2 41. Qf3 Re7 42. Kg2 Rae2 43. Rb3 R2e4 44. Ra3 h6 45. Rf6 Qg4 46. Rxh6+ Kg8 47. Ra8+ 1-0

[Event "RUS Cup Final Women 2017"]
[Site "Khanty-Mansiysk"]
[Date "2017.12.05"]
[Round "1"]
[White "Makarenko, Alexandra"]
[Black "Belenkaya, Dina"]
[Result "1/2-1/2"]
[ECO "B12"]
[WhiteElo "2277"]
[BlackElo "2328"]
[Annotator "NA"]
[PlyCount "77"]
[EventDate "2017.??.??"]
[EventCountry "RUS"]
[SourceTitle "playchess.com"]
[Source "ChessBase"]
[SourceQuality "1"]
[TimeControl "5400+30"]

1. e4 c6 2. d4 d5 3. e5 c5 4. dxc5 Nc6 5. Nf3 Bg4 6. c3 {B12: Caro-Kann: Advance Variation} e6 7. b4 g6 (7... a6 8. Nbd2 Nxe5 9. Qa4+ Nd7 10. Ne5 Ngf6 11. c4 a5 12. Nb3 axb4 13. Qb5 Be7 {0-1 (53) Topalov,V (2760)-Nakamura,H (2779) London 2016}) 8. Bf4 $146 ({Predecessor:} 8. Bb5 Bxf3 9. Qxf3 Bg7 10. Bxc6+ bxc6 11. Qe2 a5 12. a3 f6 13. Bf4 Nh6 {0-1 (34) Fedoseev,V (2670)-Fridman,D (2620) Liepaja 2016}) 8... Bxf3 9. Qxf3 Bg7 10. Bb5 Nge7 11. Qe2 O-O 12. Bxc6 Nxc6 13. b5 Na5 14. Be3 Bxe5 15. f4 Bg7 16. Bd4 Re8 17. O-O f6 (17... Bf8 $17 18. Nd2 Qc7) 18. Nd2 e5 19. fxe5 fxe5 20. Bf2 Rc8 21. Rad1 e4 $1 22. Bd4 Qc7 (22... e3 $5 23. Bxe3 Bh6 $11) 23. Nb3 Bxd4+ 24. cxd4 Nc4 25. Nd2 Na3 26. Nb1 Qa5 27. Nxa3 Qxa3 28. Qg4 Rcd8 29. c6 bxc6 30. bxc6 Qc3 $11 31. Rf6 e3 32. Rxg6+ hxg6 33. Qxg6+ Kh8 34. Qh6+ Kg8 35. Qg6+ Kh8 36. Qh6+ Kg8 37. Qg6+ Kh8 38. Qh6+ Kg8 39. Qg6+ 1/2-1/2

[Event "RUS Cup Final Women 2017"]
[Site "Khanty-Mansiysk"]
[Date "2017.12.05"]
[Round "1"]
[White "Maltsevskaya, Aleksandra"]
[Black "Tomilova, Elena"]
[Result "1/2-1/2"]
[ECO "C10"]
[WhiteElo "2260"]
[BlackElo "2322"]
[Annotator "RC"]
[PlyCount "120"]
[EventDate "2017.??.??"]
[EventCountry "RUS"]
[SourceTitle "playchess.com"]
[Source "ChessBase"]
[SourceQuality "1"]
[TimeControl "5400+30"]

1. e4 e6 2. d4 d5 3. Nc3 Nf6 4. Bg5 dxe4 5. Nxe4 Nbd7 6. Nxf6+ Nxf6 7. Nf3 Be7 8. Bd3 c5 9. Qe2 O-O 10. dxc5 Qa5+ 11. c3 Qxc5 12. O-O h6 13. Bh4 Bd7 14. Ne5 Rfd8 15. Rad1 Be8 16. Bxf6 Bxf6 17. Ng4 Bc6 18. Nxf6+ gxf6 19. Be4 Bb5 20. Qg4+ Qg5 21. Qxg5+ hxg5 22. Rfe1 Bc6 23. Bxc6 bxc6 24. g3 Kf8 25. Kg2 Ke7 26. Kf3 Rh8 27. Rd4 Rxh2 28. Red1 Rb8 29. Rd7+ Ke8 30. c4 f5 31. b3 g4+ 32. Ke3 Rh1 33. R1d3 Re1+ 34. Kd2 Ra1 35. Rxa7 Rd8 36. Rxd8+ Kxd8 37. a4 Ra2+ 38. Kc3 Rxf2 39. Rxf7 c5 40. a5 Ra2 41. Ra7 Ke8 42. a6 e5 43. b4 Ra3+ 44. Kb2 cxb4 45. c5 Kd8 46. Rf7 Rxa6 47. Kb3 Re6 48. Kc4 e4 49. Rxf5 e3 50. Rf1 Kc7 51. Kxb4 e2 52. Re1 Kc6 53. Kc4 Re3 54. Kd4 Re8 55. Kd3 Kxc5 56. Rxe2 Rxe2 57. Kxe2 Kd4 58. Kd2 Ke4 59. Ke2 Kd4 60. Kd2 Ke5 1/2-1/2

[Event "RUS Cup Final Women 2017"]
[Site "Khanty-Mansiysk"]
[Date "2017.12.08"]
[Round "2.2"]
[White "Kovanova, Baira"]
[Black "Shaydullina, Sandugach"]
[Result "1/2-1/2"]
[ECO "D31"]
[WhiteElo "2367"]
[BlackElo "2185"]
[Annotator "RC"]
[PlyCount "191"]
[EventDate "2017.??.??"]
[EventCountry "RUS"]
[SourceTitle "playchess.com"]
[Source "ChessBase"]
[SourceQuality "1"]
[TimeControl "5400+30"]

1. d4 {[%emt 0:00:00]} d5 {[%emt 0:00:06]} 2. c4 {[%emt 0:00:00]} e6 {[%emt 0:00:05]} 3. Nc3 {[%emt 0:00:11]} c6 {[%emt 0:00:06]} 4. e3 {[%emt 0:00:28]} f5 {[%emt 0:00:06]} 5. Bd3 {[%emt 0:00:12]} Nh6 {[%emt 0:00:17]} 6. Qc2 {[%emt 0:01:00]} Bd6 {[%emt 0:00:10]} 7. f4 {[%emt 0:05:22]} O-O {[%emt 0:00:23]} 8. Nf3 {[%emt 0:02:00]} Na6 {[%emt 0:00:55]} 9. a3 {[%emt 0:00:16]} dxc4 {[%emt 0:00:35]} 10. Bxc4 {[%emt 0:00:04]} b5 {[%emt 0:00:04]} 11. Be2 {[%emt 0:03:23]} b4 {[%emt 0:00:38]} 12. Na4 {[%emt 0:01:31]} bxa3 {[%emt 0:00:53]} 13. bxa3 {[%emt 0:00:09]} Qc7 {[%emt 0:00:58]} 14. Bd2 {[%emt 0:03:09]} c5 {[%emt 0:02:32]} 15. dxc5 {[%emt 0:13:01]} Nxc5 {[%emt 0:00:05]} 16. Rc1 {[%emt 0:03:50]} Na6 {[%emt 0:03:18]} 17. Qc6 {[%emt 0:09:33]} Bb7 {[%emt 0:02:18]} 18. Qxc7 {[%emt 0:03:32]} Nxc7 {[%emt 0:00:06]} 19. Nc5 {[%emt 0:01:03]} Bd5 {[%emt 0:00:30]} 20. O-O {[%emt 0:00:33]} Rfb8 {[%emt 0:00:22]} 21. Nd4 {[%emt 0:13:51]} Rb2 {[%emt 0:01:20]} 22. Ba5 {[%emt 0:00:13]} Nb5 {[%emt 0:05:41]} 23. Nxb5 {[%emt 0:23:09]} Bxc5 {[%emt 0:05:38]} 24. Rxc5 {[%emt 0:01:18]} Rxe2 {[%emt 0:00:06]} 25. Rf2 {[%emt 0:02:05]} Rxe3 {[%emt 0:00:44]} 26. Nc7 {[%emt 0:01:38]} Rb8 {[%emt 0:02:20]} 27. h3 {[%emt 0:04:09]} Rb1+ {[%emt 0:03:31]} 28. Rf1 {[%emt 0:02:16]} Rb2 {[%emt 0:01:05]} 29. Rf2 {[%emt 0:01:16]} Rb1+ {[%emt 0:04:54]} 30. Rf1 {[%emt 0:00:04]} Rxf1+ {[%emt 0:00:49]} 31. Kxf1 {[%emt 0:00:01]} Be4 {[%emt 0:00:53]} 32. Kf2 {[%emt 0:02:14]} Rxa3 {[%emt 0:00:18]} 33. Nxe6 {[%emt 0:00:05]} Ra2+ {[%emt 0:00:38]} 34. Ke3 {[%emt 0:00:07]} Ra3+ {[%emt 0:01:25]} 35. Bc3 {[%emt 0:02:54]} Kf7 {[%emt 0:02:45]} 36. Ng5+ {[%emt 0:00:19]} Ke8 {[%emt 0:01:46]} 37. Nxe4 {[%emt 0:00:11]} fxe4 {[%emt 0:00:13]} 38. Kxe4 {[%emt 0:00:04]} Ra4+ {[%emt 0:01:58]} 39. Ke3 {[%emt 0:01:11]} g6 {[%emt 0:00:13]} 40. g4 {[%emt 0:00:11]} Nf7 {[%emt 0:00:12]} 41. Rc7 {[%emt 0:00:52]} Ra3 {[%emt 0:02:25]} 42. Kd3 {[%emt 0:02:21]} Nd6 {[%emt 0:00:56]} 43. Rc5 {[%emt 0:00:15]} Ra2 {[%emt 0:01:21]} 44. Re5+ {[%emt 0:01:21]} Kd7 {[%emt 0:05:07]} 45. Bb4 {[%emt 0:00:04]} Nc8 {[%emt 0:00:14]} 46. f5 {[%emt 0:00:38]} Rb2 {[%emt 0:02:11]} 47. Bc3 {[%emt 0:00:36]} Rf2 {[%emt 0:02:28]} 48. fxg6 {[%emt 0:00:06]} hxg6 {[%emt 0:00:05]} 49. Rg5 {[%emt 0:00:34]} Ne7 {[%emt 0:00:09]} 50. h4 {[%emt 0:00:17]} Rf3+ {[%emt 0:01:04]} 51. Kc2 {[%emt 0:00:06]} Rf2+ {[%emt 0:02:21]} 52. Kd3 {[%emt 0:00:05]} Rf3+ {[%emt 0:01:12]} 53. Kc2 {[%emt 0:00:01]} Rh3 {[%emt 0:00:37]} 54. h5 {[%emt 0:00:10]} gxh5 {[%emt 0:00:27]} 55. gxh5 {[%emt 0:00:07]} Ke6 {[%emt 0:00:47]} 56. Re5+ {[%emt 0:00:34]} Kd6 {[%emt 0:00:46]} 57. Ra5 {[%emt 0:00:39]} Nd5 {[%emt 0:00:20]} 58. Bd2 {[%emt 0:00:45]} Rxh5 {[%emt 0:04:15]} 59. Rxa7 {[%emt 0:00:03]} Rh2 {[%emt 0:00:20]} 60. Ra6+ {[%emt 0:00:19]} Kc5 {[%emt 0:00:23]} 61. Ra5+ {[%emt 0:00:23]} Kc6 {[%emt 0:00:08]} 62. Ra6+ {[%emt 0:00:05]} Nb6 {[%emt 0:00:06]} 63. Kd3 {[%emt 0:00:40]} Kb7 {[%emt 0:00:19]} 64. Ra5 {[%emt 0:00:31]} Rh3+ {[%emt 0:00:27]} 65. Be3 {[%emt 0:00:14]} Nc8 {[%emt 0:00:06]} 66. Rg5 {[%emt 0:00:55]} Nd6 {[%emt 0:00:18]} 67. Rg7+ {[%emt 0:00:31]} Kc6 {[%emt 0:00:04]} 68. Rg5 {[%emt 0:00:32]} Kd7 {[%emt 0:00:51]} 69. Re5 {[%emt 0:00:05]} Nf7 {[%emt 0:00:36]} 70. Ra5 {[%emt 0:00:21]} Ke6 {[%emt 0:00:11]} 71. Ke2 {[%emt 0:01:58]} Ne5 {[%emt 0:00:15]} 72. Bf4 {[%emt 0:00:35]} Nf3 {[%emt 0:00:17]} 73. Be3 {[%emt 0:01:17]} Ne5 {[%emt 0:00:26]} 74. Bf4 {[%emt 0:00:02]} Nc6 {[%emt 0:00:06]} 75. Ra6 {[%emt 0:00:20]} Kd5 {[%emt 0:00:05]} 76. Kf2 {[%emt 0:00:43]} Nd4 {[%emt 0:00:22]} 77. Bg3 {[%emt 0:00:08]} Rh7 {[%emt 0:01:33]} 78. Ra8 {[%emt 0:00:35]} Rf7+ {[%emt 0:00:18]} 79. Kg2 {[%emt 0:00:20]} Nf5 {[%emt 0:00:15]} 80. Ra5+ {[%emt 0:00:21]} Ke4 {[%emt 0:00:12]} 81. Ra4+ {[%emt 0:00:15]} Kd3 {[%emt 0:00:34]} 82. Ra3+ {[%emt 0:00:14]} Kc4 {[%emt 0:00:13]} 83. Ra4+ {[%emt 0:00:21]} Kb5 {[%emt 0:00:53]} 84. Rf4 {[%emt 0:00:06]} Kc6 {[%emt 0:00:14]} 85. Kf3 {[%emt 0:00:42]} Kd5 {[%emt 0:00:07]} 86. Kg4 {[%emt 0:01:52]} Ne3+ {[%emt 0:01:18]} 87. Kf3 {[%emt 0:00:07]} Re7 {[%emt 0:00:05]} 88. Bf2 {[%emt 0:00:27]} Nc2 {[%emt 0:00:54]} 89. Rf5+ {[%emt 0:00:22]} Kc4 {[%emt 0:00:16]} 90. Rf8 {[%emt 0:00:11]} Rd7 {[%emt 0:00:33]} 91. Ke4 {[%emt 0:00:16]} Re7+ {[%emt 0:01:41]} 92. Kf3 {[%emt 0:00:02]} Nb4 {[%emt 0:00:40]} 93. Rf4+ {[%emt 0:00:36]} Kb5 {[%emt 0:00:26]} 94. Rf5+ {[%emt 0:00:06]} Kc4 {[%emt 0:01:59]} 95. Bc5 {[%emt 0:00:26]} Re1 {[%emt 0:01:08]} 96. Bxb4 {[%emt 0:00:06]} 1/2-1/2

[Event "RUS Cup Final Women 2017"]
[Site "Khanty-Mansiysk"]
[Date "2017.12.09"]
[Round "3.1"]
[White "Tomilova, Elena"]
[Black "Kovanova, Baira"]
[Result "1/2-1/2"]
[ECO "D03"]
[WhiteElo "2322"]
[BlackElo "2367"]
[Annotator "ChessBase"]
[PlyCount "59"]
[EventDate "2017.??.??"]
[EventCountry "RUS"]
[SourceTitle "playchess.com"]
[Source "ChessBase"]
[SourceQuality "1"]
[TimeControl "5400+30"]

1. d4 {[%emt 0:00:00]} Nf6 {[%emt 0:00:04]} 2. Bg5 {[%emt 0:00:00]} d5 {[%emt 0:00:11]} 3. e3 {[%emt 0:00:10]} c5 {[%emt 0:02:12]} 4. c3 {[%emt 0:00:22]} Nc6 {[%emt 0:02:26]} 5. Nd2 {[%emt 0:01:15]} e6 {[%emt 0:03:43]} 6. Bd3 {[%emt 0:01:57]} h6 {[%emt 0:00:44]} 7. Bh4 {[%emt 0:01:50]} Bd6 {[%emt 0:04:20]} 8. Ngf3 {[%emt 0:01:34]} Qc7 {[%emt 0:01:21]} 9. O-O {[%emt 0:13:45]} cxd4 {[%emt 0:13:33]} 10. exd4 {[%emt 0:01:40]} Nh5 {[%emt 0:04:45]} 11. Re1 {[%emt 0:06:04]} Nf4 {[%emt 0:03:20]} 12. Bb5 {[%emt 0:02:44]} a6 {[%emt 0:02:32]} 13. Bxc6+ {[%emt 0:01:57]} Qxc6 {[%emt 0:01:31]} 14. Nb3 {[%emt 0:05:14]} a5 {[%emt 0:01:34]} 15. Ne5 {[%emt 0:03:32]} Bxe5 {[%emt 0:11:16]} 16. dxe5 {[%emt 0:01:30]} Bd7 {[%emt 0:02:12]} 17. Bg3 {[%emt 0:10:18]} Ng6 {[%emt 0:00:19]} 18. Nd4 {[%emt 0:00:21]} Qb6 {[%emt 0:01:14]} 19. Qb3 {[%emt 0:05:38]} Qxb3 {[%emt 0:02:29]} 20. axb3 {[%emt 0:00:06]} O-O {[%emt 0:01:29]} 21. f3 {[%emt 0:04:11]} Rfc8 {[%emt 0:02:24]} 22. Ra3 {[%emt 0:03:44]} b6 {[%emt 0:03:55]} 23. Bf2 {[%emt 0:02:25]} Nf4 {[%emt 0:04:11]} 24. Rd1 {[%emt 0:02:06]} Ng6 {[%emt 0:00:24]} 25. Re1 {[%emt 0:00:16]} Nf4 {[%emt 0:00:05]} 26. Rd1 {[%emt 0:04:43]} Ng6 {[%emt 0:00:16]} 27. Re1 {[%emt 0:01:41]} Nf4 28. Re3 f6 29. exf6 gxf6 30. Bg3 1/2-1/2

[Event "RUS Cup Final Women 2017"]
[Site "Khanty-Mansiysk"]
[Date "2017.12.10"]
[Round "3.2"]
[White "Kovanova, Baira"]
[Black "Tomilova, Elena"]
[Result "1-0"]
[ECO "D10"]
[WhiteElo "2367"]
[BlackElo "2322"]
[Annotator "NA"]
[PlyCount "83"]
[EventDate "2017.??.??"]
[EventCountry "RUS"]
[SourceTitle "playchess.com"]
[Source "ChessBase"]
[SourceQuality "1"]
[TimeControl "5400+30"]

1. d4 d5 2. c4 c6 3. e3 Nf6 4. Nc3 Bf5 5. cxd5 cxd5 6. Qb3 Nc6 {D10: Slav Defence: 3 cxd5 (without early Nf3) and 3 Nc3} 7. Qxb7 Bd7 $1 8. Qb3 Rb8 9. Qd1 e5 {LiveBook: 100 Games} 10. dxe5 Nxe5 11. a3 (11. Nge2 Bc5 12. Nd4 O-O 13. Be2 Qe7 14. O-O {1-0 (48) Melkumyan,H (2640)-Solak,D (2633) Izmir 2016}) 11... Qc7 $146 ({Predecessor:} 11... Bd6 12. f4 Ng6 13. Nf3 O-O 14. Be2 {½-½ (38) Klein,E (1936)-Kumar,A (2182) ICC INT 2015}) 12. Be2 Bd6 13. Nf3 Nxf3+ 14. Bxf3 O-O 15. h3 Rfd8 16. O-O ({Reject} 16. Nxd5 Nxd5 17. Bxd5 (17. Qxd5 $2 Be5 $19) 17... Bc6 $17) 16... Bh2+ 17. Kh1 Be5 18. a4 Rb6 19. Nxd5 Nxd5 20. Bxd5 Be6 21. e4 Bxd5 22. exd5 Qc4 23. Be3 Rxb2 $16 24. Rc1 Qb4 25. Rc5 h6 26. d6 Rxd6 27. Rc8+ Kh7 28. Qh5 Rg6 29. Qxe5 Qb7 30. Rg1 Rb1 31. Rcc1 Rb4 32. Rc7 Qb8 33. Bxa7 Qa8 34. Rxf7 Rxa4 35. Bd4 Qg8 36. Re7 Qf8 37. Re8 Qb4 38. Qd5 Qc4 39. Qxc4 Rxc4 40. Be3 Rc2 41. Re7 Rd6 42. Rb1 1-0